bitfinex/quotes_ETHUSD_20230117
["timestamp","ask_amount","ask_price","bid_price","bid_amount"]
[1673942560818,5.05664001,1563.5,1563.4,29.4565563]
[1673942562275,5.05664001,1563.5,1563.4,28.01962219]
[1673942564910,5.05664001,1563.5,1563.4,30.41318407]
[1673942565119,5.05664001,1563.5,1563.4,32.87318407]
[1673942565335,2.51830735,1563.5,1563.4,29.02297655]
[1673942565586,2.45432599,1563.5,1563.4,29.48118042]
[1673942565816,2.45432599,1563.5,1563.4,29.86899716]
[1673942567714,0.06398136,1563.8,1563.5,2.99128365]
[1673942567919,0.13561828,1564.0,1563.7,3.1337203]
[1673942568135,0.13561828,1564.0,1563.8,24.69527315]
[1673942568298,0.13561828,1564.0,1563.9,5.49086987]
[1673942568510,0.13561828,1564.0,1563.9,21.34540987]
[1673942568768,0.13561828,1564.0,1563.9,22.04224557]
[1673942569083,0.13561828,1564.0,1563.9,23.96649836]
[1673942569264,0.13561828,1564.0,1563.9,25.62118969]
[1673942570065,0.13561828,1564.0,1563.9,23.96649836]
[1673942570335,0.13561828,1564.0,1563.9,20.38755424]
[1673942570545,0.13561828,1564.0,1563.9,18.97116407]
[1673942571277,0.13561828,1564.0,1563.9,15.85454]
[1673942571487,0.13561828,1564.0,1563.9,6.46027]
[1673942572015,0.13561828,1564.0,1563.9,0.066]
[1673942572229,0.13561828,1564.0,1563.8,6.46067]
[1673942572379,0.13561828,1564.0,1563.8,12.85534]
[1673942575677,2.44673049,1564.0,1563.8,0.066]
[1673942575976,2.44673049,1564.0,1563.6,6.46139]
[1673942575977,2.49558049,1564.0,1563.6,6.46139]
[1673942576186,3.49558049,1564.0,1563.6,6.46139]
[1673942576446,2.49558049,1564.0,1563.6,6.46139]
[1673942578502,3.9275846,1564.0,1563.6,6.46139]
[1673942578750,0.39275846,1563.9,1563.6,6.46139]
[1673942580037,1.26558049,1564.0,1563.6,6.46139]
[1673942580426,2.96850815,1564.0,1563.6,6.46139]
[1673942580671,1.26558049,1564.0,1563.6,6.46139]
[1673942582931,1.26758049,1564.0,1563.6,6.45939]
[1673942583146,1.26558049,1564.0,1563.6,6.46139]
[1673942583609,0.31145953,1564.0,1563.6,12.85688]
[1673942583792,1.26558049,1564.0,1563.6,12.85688]
[1673942584004,1.13858924,1564.0,1563.7,3.11662407]
[1673942584356,1.13858924,1564.0,1563.8,6.39467]
[1673942584542,1.13858924,1564.0,1563.8,6.46067]
[1673942586930,1.13858924,1564.0,1563.8,12.85534]
[1673942588878,1.14058924,1564.0,1563.8,6.45867]
[1673942589203,1.13858924,1564.0,1563.8,12.85534]
[1673942589510,0.18446828,1564.0,1563.8,15.39201241]
[1673942590670,0.18446828,1564.0,1563.9,2.99716681]
[1673942590885,0.18446828,1564.0,1563.9,9.39143681]
[1673942591029,0.18446828,1564.0,1563.9,9.45743681]
[1673942593141,0.18446828,1564.0,1563.9,15.85170681]
[1673942593344,0.18446828,1564.0,1563.9,18.33001173]
[1673942596628,0.18446828,1564.0,1563.9,18.32728393]
[1673942597043,0.18446828,1564.0,1563.9,21.443908]
[1673942597914,0.18446828,1564.0,1563.9,11.93301393]
[1673942598132,0.18446828,1564.0,1563.9,9.45470901]
[1673942603172,0.18446828,1564.0,1563.9,20.27716859]
[1673942603370,0.13561828,1564.0,1563.9,20.27716859]
[1673942604234,0.13561828,1564.0,1563.9,21.23502422]
[1673942604459,0.13561828,1564.0,1563.9,24.85967234]
[1673942604604,0.13561828,1564.0,1563.9,28.80539853]
[1673942604819,0.13561828,1564.0,1563.9,29.7623417]
[1673942605060,0.13561828,1564.0,1563.9,28.32555825]
[1673942605699,0.13561828,1564.0,1563.9,29.7623417]
[1673942605865,0.13561828,1564.0,1563.9,29.03539853]
[1673942606225,0.13561828,1564.0,1563.9,30.94970427]
[1673942606657,0.18017325,1564.1,1564.0,0.31851051]
[1673942606853,0.18017325,1564.1,1564.0,36.6034732]
[1673942607181,0.18017325,1564.1,1564.0,37.49010938]
[1673942607400,0.18017325,1564.1,1564.0,38.44621789]
[1673942607873,0.18017325,1564.1,1564.0,38.44621581]
[1673942608077,0.18017325,1564.1,1564.0,37.0120906]
[1673942609140,0.18017325,1564.1,1564.0,37.49010938]
[1673942609336,0.18017325,1564.1,1564.0,40.99010938]
[1673942609544,0.18017325,1564.1,1564.0,37.49010938]
[1673942610528,0.18017325,1564.1,1564.0,38.44579675]
[1673942610716,0.18017325,1564.1,1564.0,37.01167154]
[1673942611223,0.18017325,1564.1,1564.0,36.78167154]
[1673942613042,0.18017325,1564.1,1564.0,35.12574254]
[1673942613905,0.18017325,1564.1,1564.0,35.35574254]
[1673942614335,0.18017325,1564.1,1564.0,35.12574254]
[1673942614687,0.18017325,1564.1,1564.0,34.12574254]
[1673942615109,0.18017325,1564.1,1564.0,31.66574254]
[1673942615574,0.18017325,1564.1,1564.0,31.83908141]
[1673942616581,0.18017325,1564.1,1564.0,23.85928009]
[1673942616905,0.18017325,1564.1,1564.0,22.54771458]
[1673942618054,0.18017325,1564.1,1564.0,9.75999458]
[1673942618270,0.18017325,1564.1,1564.0,9.64337051]
[1673942618634,0.18017325,1564.1,1564.0,0.24951051]
[1673942618890,0.18017325,1564.1,1564.0,0.18351051]
[1673942619053,0.90063153,1564.1,1564.0,0.18351051]
[1673942620154,0.92002556,1564.1,1564.0,0.18351051]
[1673942620742,0.24841728,1564.1,1564.0,0.18351051]
[1673942622959,0.24841728,1564.1,1564.0,6.57737051]
[1673942622960,0.22902325,1564.1,1564.0,6.57737051]
[1673942623149,0.22902325,1564.1,1564.0,6.64337051]
[1673942624360,0.22902325,1564.1,1564.0,16.15385458]
[1673942624536,0.22902325,1564.1,1564.0,9.64337051]
[1673942627600,0.22902325,1564.1,1564.0,14.36375263]
[1673942627815,0.22902325,1564.1,1564.0,22.30228701]
[1673942628039,0.18017325,1564.1,1564.0,22.30028701]
[1673942628234,0.18017325,1564.1,1564.0,22.30219345]
[1673942628568,0.18017325,1564.1,1564.0,22.30019571]
[1673942628719,0.1781408,1564.1,1564.0,22.30219571]
[1673942628929,0.1781408,1564.1,1564.0,20.75761263]
[1673942629560,0.1781408,1564.1,1564.0,22.30237465]
[1673942636411,0.1781408,1564.1,1564.0,23.25806202]
[1673942636647,0.1781408,1564.1,1564.0,25.0092426]
[1673942636817,0.1781408,1564.1,1564.0,23.25806202]
[1673942637027,0.1781408,1564.1,1564.0,25.0092426]
[1673942637235,0.1781408,1564.1,1564.0,26.89942865]
[1673942637497,0.1781408,1564.1,1564.0,26.90142865]
[1673942639235,0.1781408,1564.1,1564.0,26.90203201]
[1673942639705,0.1781408,1564.1,1564.0,25.00984596]
[1673942639923,0.1781408,1564.1,1564.0,23.25866538]
[1673942640070,0.1781408,1564.1,1564.0,25.00984596]
[1673942643767,0.1781408,1564.1,1564.0,23.40608791]
[1673942643983,0.1781408,1564.1,1564.0,22.44979718]
[1673942645555,0.1781408,1564.1,1564.0,21.65490733]
[1673942645772,0.1781408,1564.1,1564.0,22.44979718]
[1673942646271,0.1781408,1564.1,1564.0,24.84021312]
[1673942646482,0.1781408,1564.1,1564.0,30.11746939]
[1673942647276,0.1781408,1564.1,1564.0,29.16117866]
[1673942649289,0.1781408,1564.1,1564.0,29.18471291]
[1673942649655,0.14282951,1564.2,1564.1,1.08506667]
[1673942649968,0.14282951,1564.2,1564.1,30.31926776]
[1673942650121,0.14282951,1564.2,1564.1,36.9813218]
[1673942650601,0.14282951,1564.2,1564.1,36.0243358]
[1673942651917,0.14282951,1564.2,1564.1,35.98123664]
[1673942652643,0.09808906,1564.2,1564.1,35.98123664]
[1673942653944,0.09808906,1564.2,1564.1,34.54575764]
[1673942655890,0.09808906,1564.2,1564.1,35.0243358]
[1673942656475,0.09808906,1564.2,1564.1,37.1700561]
[1673942657326,0.09808906,1564.2,1564.1,35.2543358]
[1673942657545,0.09808906,1564.2,1564.1,37.1700561]
[1673942659952,0.09808906,1564.2,1564.1,35.2543358]
[1673942660371,0.09808906,1564.2,1564.1,37.62811694]
[1673942660683,0.09808906,1564.2,1564.1,35.71239664]
[1673942661931,0.09808906,1564.2,1564.1,35.70952794]
[1673942663016,9.06e-06,1564.2,1564.1,38.58441961]
[1673942663278,0.14339372,1564.3,1564.1,38.58441961]
[1673942663419,0.14339372,1564.3,1564.2,21.30590805]
[1673942663637,0.14339372,1564.3,1564.2,27.55786502]
[1673942664865,0.14339372,1564.3,1564.2,28.51443119]
[1673942665076,0.14339372,1564.3,1564.2,19.26464667]
[1673942665745,0.14339372,1564.3,1564.2,18.47003226]
[1673942666345,0.14339372,1564.3,1564.2,21.47003226]
[1673942666793,0.14339372,1564.3,1564.2,23.22121284]
[1673942667051,0.14339372,1564.3,1564.2,22.26464667]
[1673942667185,0.14339372,1564.3,1564.2,4.60576507]
[1673942667404,0.14339372,1564.3,1564.2,3.0]
[1673942667740,0.14339372,1564.3,1564.2,9.39304]
[1673942667958,0.14339372,1564.3,1564.2,9.45904]
[1673942668755,0.14339372,1564.3,1564.2,0.066]
[1673942668981,0.26759383,1564.3,1564.1,0.08219797]
[1673942669232,0.26759383,1564.3,1564.1,3.08219797]
[1673942670279,0.26759383,1564.3,1564.1,15.86905797]
[1673942670280,0.14339372,1564.3,1564.1,15.86905797]
[1673942670502,0.14339372,1564.3,1564.2,1.5003015]
[1673942670673,0.14339372,1564.3,1564.1,16.89162414]
[1673942670877,0.14339372,1564.3,1564.1,15.93505797]
[1673942671432,0.14339372,1564.3,1564.2,1.50042509]
[1673942672015,0.14339372,1564.3,1564.1,16.89162414]
[1673942672228,0.14339372,1564.3,1564.2,1.50042683]
[1673942673090,0.14339372,1564.3,1564.2,17.4031309]
[1673942673297,0.14339372,1564.3,1564.2,23.2592614]
[1673942673505,0.14339372,1564.3,1564.2,24.21582757]
[1673942674910,0.14339372,1564.3,1564.2,32.04364396]
[1673942675063,0.14339372,1564.3,1564.2,32.32764518]
[1673942677378,0.14339372,1564.3,1564.2,33.76242157]
[1673942678129,0.14448639,1564.4,1564.3,1.0642405]
[1673942678396,0.14448639,1564.4,1564.3,26.78282594]
[1673942678602,0.14448639,1564.4,1564.3,29.75271901]
[1673942678820,0.14448639,1564.4,1564.3,28.31715453]
[1673942679201,0.14448639,1564.4,1564.3,20.5498204]
[1673942679411,0.14448639,1564.4,1564.3,9.5228705]
[1673942679619,0.14448639,1564.4,1564.3,0.1302405]
[1673942679884,0.14448639,1564.4,1564.3,0.0642405]
[1673942681406,2.56160735,1564.4,1564.3,0.0642405]
[1673942681651,3.12592557,1564.4,1564.3,0.0642405]
[1673942683346,4.55792968,1564.4,1564.3,0.0642405]
[1673942685343,16.38824872,1564.4,1564.3,0.0642405]
[1673942685507,17.15956479,1564.4,1564.3,0.0642405]
[1673942686989,18.58778361,1564.4,1564.3,0.0642405]
[1673942687183,20.89259817,1564.4,1564.3,0.0642405]
[1673942687605,0.066,1564.4,1564.3,17.55173215]
[1673942687814,0.17543151,1564.5,1564.3,25.21490757]
[1673942688077,0.17543151,1564.5,1564.4,14.48707075]
[1673942688296,0.17543151,1564.5,1564.4,23.94529075]
[1673942688459,0.17543151,1564.5,1564.4,32.29435989]
[1673942688658,0.17543151,1564.5,1564.4,34.0131375]
[1673942688868,0.17543151,1564.5,1564.4,34.04557302]
[1673942689321,0.17543151,1564.5,1564.4,20.51577093]
[1673942689546,0.17543151,1564.5,1564.4,21.46247454]
[1673942689757,0.17543151,1564.5,1564.4,21.90823277]
[1673942690076,0.17543151,1564.5,1564.4,20.00447454]
[1673942690884,0.17543151,1564.5,1564.4,19.55871631]
[1673942691516,0.17543151,1564.5,1564.4,24.2321587]
[1673942691744,0.17543151,1564.5,1564.4,24.67791693]
[1673942692546,0.17543151,1564.5,1564.4,17.87980581]
[1673942692750,0.17543151,1564.5,1564.4,3.066]
[1673942692964,0.17543151,1564.5,1564.4,3.0]
[1673942694596,0.17543151,1564.5,1564.3,0.066]
[1673942694746,0.01939403,1564.4,1564.2,6.45874]
[1673942695427,1.59610407,1564.4,1564.2,0.066]
[1673942695638,7.98842407,1564.4,1564.0,3.066]
[1673942695848,9.00669893,1564.4,1564.0,3.0]
[1673942697913,15.39901893,1564.4,1564.0,3.0]
[1673942698124,7.85405,1564.2,1563.9,0.066]
[1673942698374,7.92005,1564.2,1563.9,3.0]
[1673942698776,7.92005,1564.2,1563.8,3.066]
[1673942699021,7.92005,1564.2,1563.8,3.0]
[1673942699174,0.792005,1564.1,1563.8,3.0]
[1673942700339,7.185485,1564.1,1563.8,3.0]
[1673942700554,7.251485,1564.1,1563.7,4.02305462]
[1673942700777,7.251485,1564.1,1563.7,3.95705462]
[1673942701200,7.251485,1564.1,1563.7,3.0]
[1673942701429,7.251485,1564.1,1563.8,1.5863385]
[1673942701753,0.7251485,1564.0,1563.8,3.0]
[1673942701907,0.7251485,1564.0,1563.7,3.066]
[1673942702118,6.45948,1564.1,1563.7,3.0]
[1673942703120,0.066,1564.1,1563.7,9.39507]
[1673942703328,14.33249403,1564.2,1563.8,1.58631955]
[1673942703487,14.33249403,1564.2,1563.7,9.46107]
[1673942704141,14.33249403,1564.2,1563.7,3.066]
[1673942704358,14.33249403,1564.2,1563.7,3.0]
[1673942704905,15.28476889,1564.2,1563.7,3.0]
[1673942705095,5.54613122,1564.1,1563.6,0.066]
[1673942705286,1.468,1563.7,1563.5,0.05238528]
[1673942705503,0.1468,1563.6,1563.5,0.05238528]
[1673942707635,8.8663,1563.8,1563.5,0.05238528]
[1673942708233,8.8663,1563.8,1563.5,6.44824528]
[1673942708438,8.8663,1563.8,1563.5,6.51424528]
[1673942708981,0.066,1563.8,1563.5,6.51424528]
[1673942709321,1.468,1563.9,1563.6,0.65142453]
[1673942709481,26.15594403,1564.0,1563.6,4.0]
[1673942709685,16.91064403,1564.0,1563.6,4.0]
[1673942710369,16.91064403,1564.0,1563.6,3.0]
[1673942710572,16.91064403,1564.0,1563.6,2.99644718]
[1673942710785,10.51651403,1564.0,1563.6,2.99644718]
[1673942711583,16.91044403,1564.0,1563.6,2.99644718]
[1673942719566,1.463,1563.9,1563.6,2.99644718]
[1673942720570,14.25167,1563.9,1563.6,2.99644718]
[1673942720875,14.31767,1563.9,1563.5,3.11838528]
[1673942721089,14.31767,1563.9,1563.5,3.05238528]
[1673942721400,14.31754,1563.9,1563.5,3.05238528]
[1673942721611,14.31754,1563.9,1563.5,0.05238528]
[1673942721832,7.92327,1563.9,1563.5,0.05238528]
[1673942723385,1.529,1563.9,1563.5,0.05238528]
[1673942723677,1.463,1563.9,1563.5,12.84405528]
[1673942723822,1.463,1563.9,1563.6,3.0]
[1673942729255,2.463,1563.9,1563.6,3.0]
[1673942729475,1.468,1563.8,1563.6,3.0]
[1673942729671,1.468,1563.8,1563.5,3.11838528]
[1673942729887,1.468,1563.8,1563.5,3.05238528]
[1673942730259,2.354238,1563.8,1563.5,3.05238528]
[1673942730776,8.748918,1563.8,1563.6,3.0]
[1673942730997,0.952238,1563.8,1563.5,0.11838528]
[1673942731307,0.066,1563.9,1563.5,6.44828528]
[1673942731523,15.42298,1564.0,1563.6,3.0]
[1673942732626,16.77235876,1564.0,1563.7,1.16788982]
[1673942733140,1.01939403,1563.9,1563.7,1.16788982]
[1673942734031,17.3927081,1563.9,1563.7,1.16788982]
[1673942734267,7.94766403,1563.9,1563.7,1.16788982]
[1673942734555,8.89993889,1563.9,1563.7,1.16788982]
[1673942738710,10.32835118,1563.9,1563.7,1.16788982]
[1673942739188,8.89993889,1563.9,1563.7,1.16788982]
[1673942739878,2.48627486,1563.9,1563.7,1.16788982]
[1673942740097,9.98139486,1564.0,1563.7,1.16509887]
[1673942740445,11.40980715,1564.0,1563.7,1.16509887]
[1673942740862,0.95227486,1563.9,1563.7,1.16509887]
[1673942741086,0.11482,1564.0,1563.8,1.70303265]
[1673942741233,0.04882,1564.0,1563.8,3.11650989]
[1673942741444,0.95227486,1564.1,1563.8,9.51097989]
[1673942741766,0.95227486,1564.1,1563.8,9.57697989]
[1673942742589,2.38068715,1564.1,1563.8,9.57697989]
[1673942742940,0.95227486,1564.1,1563.8,9.57697989]
[1673942743244,0.95227486,1564.0,1563.8,9.57697989]
[1673942743459,0.95227486,1564.0,1563.8,3.18250989]
[1673942743671,0.95227486,1564.0,1563.8,3.11650989]
[1673942746484,1.42841229,1564.1,1563.8,3.11650989]
[1673942746485,0.95227486,1564.1,1563.8,3.11650989]
[1673942748725,0.95227486,1564.1,1563.8,3.0]
[1673942748726,8.77418715,1564.1,1563.8,3.0]
[1673942748938,8.84018715,1564.1,1563.8,3.0]
[1673942749113,7.41177486,1564.1,1563.7,5.18815349]
[1673942749324,8.84018715,1564.1,1563.8,1.58644548]
[1673942749582,8.84018715,1564.1,1563.8,4.58644548]
[1673942749794,8.84018715,1564.1,1563.8,3.0]
[1673942750014,8.84018715,1564.1,1563.7,5.18815349]
[1673942750222,8.84018715,1564.1,1563.8,1.58644529]
[1673942750375,7.41177486,1564.1,1563.8,4.58644529]
[1673942750583,7.41177486,1564.1,1563.8,3.0]
[1673942750584,1.01827486,1564.1,1563.8,3.0]
[1673942750840,0.95227486,1564.1,1563.8,6.91342535]
[1673942751160,0.95227486,1564.1,1563.9,3.0]
[1673942753643,0.95227486,1564.1,1563.8,3.066]
[1673942753899,0.95227486,1564.1,1563.8,3.0]
[1673942755993,0.95020073,1564.1,1563.8,3.0]
[1673942756159,0.95020073,1564.1,1563.8,6.40227584]
[1673942756520,0.95020073,1564.1,1563.8,6.46827584]
[1673942758265,0.95020073,1564.1,1563.8,3.066]
[1673942758477,2.37861302,1564.1,1563.8,3.0]
[1673942758689,17.58797201,1564.1,1563.7,10.88500481]
[1673942759049,1.0,1564.0,1563.7,3.20650481]
[1673942759199,0.1,1563.9,1563.7,3.14050481]
[1673942760773,14.35358,1563.9,1563.7,3.14050481]
[1673942760988,0.23,1563.8,1563.7,3.14050481]
[1673942761203,6.62467,1563.8,1563.7,3.14050481]
[1673942761533,6.69067,1563.8,1563.7,3.14050481]
[1673942764856,6.69067,1563.8,1563.7,1.16509887]
[1673942773831,7.69067,1563.8,1563.7,1.16509887]
[1673942774200,6.69067,1563.8,1563.7,1.16509887]
[1673942776146,6.69067,1563.8,1563.7,1.16175772]
[1673942776781,7.64250135,1563.8,1563.7,1.16175772]
[1673942778668,7.41250135,1563.8,1563.7,1.16175772]
[1673942778824,1.01783135,1563.8,1563.7,1.16175772]
[1673942779033,0.95183135,1563.8,1563.7,1.16175772]
[1673942781992,8.87712135,1563.9,1563.7,1.16175772]
[1673942782240,0.88771213,1563.8,1563.7,1.16175772]
[1673942786019,8.87712135,1563.9,1563.7,1.16175772]
[1673942787779,7.92529,1563.9,1563.7,1.16175772]
[1673942789125,8.87712135,1563.9,1563.7,1.16175772]
[1673942789696,7.41212135,1563.9,1563.7,1.16175772]
[1673942791118,13.80669135,1563.9,1563.7,1.16175772]
[1673942791327,15.23443838,1563.9,1563.7,1.16175772]
[1673942793166,0.95183135,1563.8,1563.7,1.16175772]
[1673942795904,2.41983135,1563.8,1563.7,1.16175772]
[1673942796064,3.84757838,1563.8,1563.7,1.16175772]
[1673942797123,2.42206978,1563.8,1563.7,1.16175772]
[1673942797823,0.95406978,1563.8,1563.7,1.16175772]
[1673942797989,2.38181681,1563.8,1563.7,1.16175772]
[1673942798705,0.95406978,1563.8,1563.7,1.16175772]
[1673942800118,2.38181681,1563.8,1563.7,1.16175772]
[1673942800336,1.42774703,1563.8,1563.7,1.16175772]
[1673942801227,7.82241703,1563.8,1563.7,1.16175772]
[1673942801512,9.79207973,1563.8,1563.7,1.16175772]
[1673942802094,9.79576364,1563.8,1563.7,1.15914521]
[1673942802358,13.73768124,1563.8,1563.7,1.15914521]
[1673942804611,22.51192962,1563.8,1563.7,1.15914521]
[1673942804823,20.85766095,1563.8,1563.7,1.15914521]
[1673942805795,22.76572426,1563.8,1563.7,1.15914521]
[1673942806141,20.85766095,1563.8,1563.7,1.15914521]
[1673942807062,22.76542914,1563.8,1563.7,1.15914521]
[1673942809602,25.88205321,1563.8,1563.7,1.15914521]
[1673942810851,23.50247483,1563.8,1563.7,1.15914521]
[1673942814316,23.55129483,1563.8,1563.7,1.15914521]
[1673942814470,24.77329483,1563.8,1563.7,1.15914521]
[1673942814940,27.15287321,1563.8,1563.7,1.15914521]
[1673942816409,27.15214059,1563.8,1563.7,1.15914521]
[1673942816567,25.24510502,1563.8,1563.7,1.15914521]
[1673942816775,20.82964365,1563.8,1563.7,1.15914521]
[1673942816996,20.82682779,1563.8,1563.7,1.15914521]
[1673942817244,22.05282779,1563.8,1563.5,0.05238528]
[1673942817419,10.12257607,1563.6,1563.5,0.05238528]
[1673942817770,8.28170787,1563.6,1563.5,0.05238528]
[1673942818372,10.18857607,1563.6,1563.5,0.05238528]
[1673942818827,8.28170787,1563.6,1563.5,0.05238528]
[1673942819208,1.88621787,1563.6,1563.5,0.05238528]
[1673942819419,1.82021787,1563.6,1563.5,0.05238528]
[1673942820792,2.77321027,1563.6,1563.5,0.05238528]
[1673942821007,8.21570787,1563.6,1563.5,0.05238528]
[1673942821191,8.28170787,1563.6,1563.5,0.05238528]
[1673942821400,8.51170787,1563.6,1563.5,0.05238528]
[1673942821611,9.73170787,1563.6,1563.5,0.05238528]
[1673942821822,11.63857607,1563.6,1563.5,0.05238528]
[1673942822032,9.73170787,1563.6,1563.5,0.05238528]
[1673942824765,10.68447661,1563.6,1563.5,0.05238528]
[1673942825178,9.25432546,1563.6,1563.5,0.05238528]
[1673942826546,10.68447661,1563.6,1563.5,0.05238528]
[1673942826968,9.73170787,1563.6,1563.5,0.05238528]
[1673942827490,16.12719787,1563.6,1563.5,0.05238528]
[1673942827924,14.90719787,1563.6,1563.5,0.05238528]
[1673942831656,14.90719787,1563.6,1563.5,0.96782737]
[1673942833116,20.47582194,1563.6,1563.5,0.96782737]
[1673942833652,20.52464194,1563.6,1563.5,0.96782737]
[1673942834672,22.43151014,1563.6,1563.5,0.96782737]
[1673942835098,20.52464194,1563.6,1563.5,0.96782737]
[1673942835408,21.00135899,1563.6,1563.5,0.96782737]
[1673942835747,26.37587252,1563.6,1563.5,0.96782737]
[1673942836483,28.75945776,1563.6,1563.5,0.61316048]
[1673942839642,27.24973337,1563.6,1563.5,0.61316048]
[1673942839792,26.85258956,1563.6,1563.5,0.61316048]
[1673942842168,23.25753427,1563.6,1563.5,0.61316048]
[1673942842308,10.23456222,1563.6,1563.5,0.61316048]
[1673942842521,3.83919074,1563.6,1563.5,0.61316048]
[1673942842737,2.34413195,1563.6,1563.5,0.61316048]
[1673942843271,3.77340866,1563.6,1563.5,0.61316048]
[1673942843681,3.76947624,1563.6,1563.5,0.61316048]
[1673942843890,10.16496624,1563.6,1563.5,0.61316048]
[1673942844103,10.23096624,1563.6,1563.5,0.61316048]
[1673942845730,8.32572101,1563.6,1563.5,0.61316048]
[1673942847197,1.4538224,1563.6,1563.5,7.00906048]
[1673942847408,1.4538224,1563.6,1563.5,21.87524828]
[1673942847409,0.3861343,1563.6,1563.5,21.87524828]
[1673942847718,0.3861343,1563.6,1563.5,21.87516384]
[1673942848720,0.3861343,1563.6,1563.5,23.10616384]
[1673942848931,1.0188681,1564.0,1563.6,1.0]
[1673942849195,0.9528681,1564.0,1563.7,25.21715454]
[1673942849354,0.9528681,1564.0,1563.8,15.78892]
[1673942849556,0.9528681,1564.0,1563.9,5.34762407]
[1673942849771,2.44814481,1564.2,1563.9,21.20216407]
[1673942850038,2.38214481,1564.2,1564.1,6.39345]
[1673942850351,0.9528681,1564.2,1564.1,10.860257]
[1673942850666,1.42927671,1564.2,1564.1,10.860257]
[1673942850896,0.95173344,1564.2,1564.1,10.860257]
[1673942851194,0.95173344,1564.2,1564.1,4.466807]
[1673942851347,0.95173344,1564.2,1564.1,3.0]
[1673942851557,2.38101015,1564.2,1564.1,3.0]
[1673942852015,2.38101015,1564.2,1564.0,3.066]
[1673942852287,2.38101015,1564.2,1564.0,3.0]
[1673942852648,0.95173344,1564.2,1564.0,3.0]
[1673942853593,2.38101015,1564.2,1564.0,3.0]
[1673942854189,0.95173344,1564.1,1564.0,3.0]
[1673942854399,0.95173344,1564.2,1564.0,3.946027]
[1673942855614,0.95173344,1564.2,1563.9,9.46026]
[1673942856452,2.38101015,1564.2,1563.9,3.066]
[1673942856618,0.95173344,1564.2,1563.9,3.0]
[1673942857502,2.38101015,1564.2,1563.9,3.0]
[1673942857829,9.01268116,1564.1,1563.8,10.3345]
[1673942857986,9.01268116,1564.1,1563.8,0.066]
[1673942857987,0.95173344,1564.0,1563.8,0.066]
[1673942858174,0.95173344,1564.0,1563.9,3.11662407]
[1673942858390,1.01773344,1564.2,1563.8,1.231]
[1673942858651,3.45549969,1564.2,1563.8,1.231]
[1673942858865,3.47489372,1564.2,1563.8,1.231]
[1673942859245,9.86997372,1564.2,1563.8,3.0]
[1673942859457,0.95173344,1564.1,1563.8,3.0]
[1673942862404,0.95173344,1564.0,1563.7,0.066]
[1673942862616,7.44080678,1564.0,1563.5,17.58867048]
[1673942862825,1.0,1563.9,1563.5,11.19306048]
[1673942863020,6.39476,1563.8,1563.5,9.96206048]
[1673942863237,9.51204407,1563.7,1563.5,0.67916048]
[1673942863618,9.51211407,1563.6,1563.3,0.05686378]
[1673942863812,0.23,1563.5,1563.3,0.05686378]
[1673942864440,0.232,1563.5,1563.3,0.05686378]
[1673942864653,0.23,1563.5,1563.3,0.05686378]
[1673942865978,6.62596,1563.5,1563.3,0.05686378]
[1673942866191,6.69196,1563.5,1563.3,0.05686378]
[1673942866612,0.066,1563.5,1563.3,0.05686378]
[1673942866822,12.92547403,1563.6,1563.3,0.05686378]
[1673942867124,12.79182,1563.5,1563.3,0.05686378]
[1673942867407,12.85782,1563.5,1563.3,0.05686378]
[1673942867901,0.23,1563.4,1563.3,0.05686378]
[1673942868113,6.62631,1563.4,1563.3,0.05686378]
[1673942868278,13.08862,1563.4,1563.3,0.05686378]
[1673942868920,13.08862,1563.4,1563.3,5.65686378]
[1673942869112,13.08862,1563.4,1563.3,5.72286378]
[1673942870011,6.69231,1563.4,1563.3,5.72286378]
[1673942870375,0.296,1563.4,1563.3,5.72286378]
[1673942870707,6.46191,1563.5,1563.3,5.72286378]
[1673942875371,12.85811,1563.5,1563.3,5.72286378]
[1673942877277,12.85811,1563.5,1563.3,0.12286378]
[1673942877576,12.85811,1563.5,1563.3,0.05686378]
[1673942885625,6.46191,1563.5,1563.3,0.05686378]
[1673942886874,6.46191,1563.5,1563.3,0.0534697]
[1673942887662,12.85781,1563.5,1563.3,0.0534697]
[1673942887876,0.23,1563.4,1563.3,0.0534697]
[1673942888045,13.02262,1563.4,1563.3,0.0534697]
[1673942888394,13.08862,1563.4,1563.3,0.0534697]
[1673942893595,0.066,1563.4,1563.3,0.0534697]
[1673942893827,0.066,1563.5,1563.3,0.0534697]
[1673942894036,9.42622,1563.6,1563.3,0.0534697]
[1673942894435,10.37795344,1563.6,1563.3,0.0534697]
[1673942894968,16.77348344,1563.6,1563.3,0.0534697]
[1673942896807,18.20276015,1563.6,1563.3,0.0534697]
[1673942898639,0.95173344,1563.5,1563.3,0.0534697]
[1673942900335,0.95173344,1563.5,1563.3,6.4501697]
[1673942900578,11.80723015,1563.6,1563.3,7.46710561]
[1673942901421,2.49583015,1563.6,1563.3,7.46710561]
[1673942901618,2.42983015,1563.6,1563.3,7.46710561]
[1673942902664,0.95173344,1563.5,1563.3,7.46710561]
[1673942906647,1.00055344,1563.6,1563.4,4.58689614]
[1673942906895,1.00055344,1563.6,1563.5,6.85458961]
[1673942906896,0.95173344,1563.6,1563.5,6.85458961]
[1673942907111,2.38101015,1563.7,1563.5,6.92058961]
[1673942907469,0.95173344,1563.6,1563.5,6.92058961]
[1673942908318,2.38101015,1563.7,1563.5,6.92058961]
[1673942908528,0.95173344,1563.7,1563.5,6.92058961]
[1673942910761,2.38101015,1563.7,1563.5,6.92058961]
[1673942910971,2.38101015,1563.7,1563.5,6.4619]
[1673942912444,2.38101015,1563.7,1563.5,0.066]
[1673942912635,2.38101015,1563.7,1563.5,3.0]
[1673942912851,2.38101015,1563.7,1563.5,2.998]
[1673942913942,0.95173344,1563.6,1563.5,2.998]
[1673942914557,1.42927671,1563.6,1563.4,3.066]
[1673942914745,0.95278738,1563.5,1563.4,3.0]
[1673942914955,0.95278738,1563.5,1563.3,3.1194697]
[1673942915219,0.95278738,1563.5,1563.3,3.0534697]
[1673942915538,0.95478738,1563.5,1563.3,3.0534697]
[1673942915854,0.95278738,1563.5,1563.3,3.0534697]
[1673942916065,1.42146353,1563.5,1563.3,3.0534697]
[1673942919858,2.85074024,1563.5,1563.3,3.0534697]
[1673942924597,1.42146353,1563.5,1563.3,3.0534697]
[1673942926854,0.95278738,1563.4,1563.3,3.0534697]
[1673942928143,2.85074024,1563.5,1563.3,3.0534697]
[1673942928485,0.18979529,1563.4,1563.3,3.0534697]
[1673942930363,1.14258267,1563.4,1563.3,3.0534697]
[1673942933412,2.57185938,1563.4,1563.3,3.0534697]
[1673942934199,1.14258267,1563.4,1563.3,3.0534697]
[1673942935462,13.8665246,1563.4,1563.3,3.0534697]
[1673942935672,14.1625246,1563.4,1563.3,0.0534697]
[1673942935937,26.05904391,1563.4,1563.3,0.0534697]